Cogmind - Beta 15 @@@ ROGUE MODE // 2025.10.18 @ 11:11:31 Player: Great Strength True Martial Result: Destroyed by H-55 Commando with Assault Rifle Performance ------------- Evolutions (3) 1500 Regions Visited (8) 1600 Robots Destroyed (77) 385 Value Destroyed (2507) 2507 Prototype IDs (34) 680 Alien Tech Used (0) 0 Bonus (320) 320 TOTAL SCORE: 6992 Bonus ------- High Alert Combat Kills 19 Follower Combat Kills 14 Aligned with FarCom 300 Friendly Fire -13 Cogmind --------- Core Integrity 0/700 Matter 0/300 Energy 100/100 System Corruption 28% Temperature Cool (0) Movement Core (100) Ox1 Location -7/Factory Parts ------- > --- POWER (1) -------- (None) > --- PROPULSION (3) --- (None) > --- UTILITY (7) ------ Lightpack 2.0 Improved Signal Interpreter Hacking Suite > --- WEAPON (2) ------- (None) > --- INVENTORY (40) --- Ion Engine Heavy Ion Engine Light Nuclear Core Improved Heat Sink Coolant Injector Coolant Injector Coolant Injector Small Storage Unit High-capacity Storage Unit High-capacity Storage Unit Huge Storage Unit Weight Redist. System Kinecellerator Improved Utility Shielding Improved Utility Shielding Hacking Suite Hacking Suite System Shield System Shield System Shield Recalibrator Shock Rifle Particle Gun Gatling Laser Flak Gun Flak Gun Flak Gun Advanced Assault Cannon Proton Missile Launcher Micro-nuke Launcher Datajack Remote Datajack Spear Spear Spear Spear Peak State ------------ > --- POWER ------------ Heavy Ion Engine > --- PROPULSION ------- Light Treads Light Treads Armored Treads > --- UTILITY ---------- Lightpack 2.0 Improved Signal Interpreter Hacking Suite Hacking Suite System Shield > --- WEAPON ----------- Spear Spear > --- INVENTORY -------- Heavy Ion Engine Light Nuclear Core Light Treads Light Treads Aluminum Leg Wheel Xenon Bombardment Thruster Improved Heat Sink Disposable Heat Sink Coolant Injector Coolant Injector Coolant Injector Small Storage Unit High-capacity Storage Unit High-capacity Storage Unit Huge Storage Unit Weight Redist. System Kinecellerator Improved Utility Shielding Improved Utility Shielding Hacking Suite System Shield System Shield System Shield Improved Field Recycling Unit Shock Rifle Particle Gun Gatling Laser Flak Gun Flak Gun Flak Gun Advanced Assault Cannon Proton Missile Launcher Rocket Launcher Missile Launcher Datajack Remote Datajack Spear Spear [Rating: 69] Favorites ----------- Power Light Angular Momentum Engine Engine Light Angular Momentum Engine Power Core Light Nuclear Core Propulsion Light Treads Treads Light Treads Leg Aluminum Leg Wheel Wheel Flight Unit Cesium-ion Thruster Utility Lightpack 2.0 Device Kinecellerator Storage Lightpack 2.0 Processor Improved Signal Interpreter Hackware Hacking Suite Protection Hardened Light Armor Plating Weapon Assault Rifle Energy Gun Beam Rifle Energy Cannon Ion Cannon Ballistic Gun Assault Rifle Launcher Missile Launcher Slashing Weapon Scythe Piercing Weapon Spear Special Melee Weapon Datajack Build | -11 -10 -10 -10 -9 -8 -7 -7 -7 ------- Run | Yrd Mat Min Exi Min Mat Fac Was Fac Slots Evolved 6 | . . . . . 4 2 . . Power . | . . . . . . . . . Propulsion 1 | . . . . . 1 . . . Utility 5 | . . . . . 3 2 . . Weapon . | . . . . . . . . . Parts Attached 76 | 7 1 . 1 1 30 29 5 2 Power 11 | 1 . . . 1 3 5 . 1 Engine 9 | 1 . . . 1 3 3 . 1 Core 2 | . . . . . . 2 . . Reactor . | . . . . . . . . . Propulsion 21 | 2 . . . . 9 6 4 . Treads 12 | 2 . . . . 4 5 1 . Leg 7 | . . . . . 4 1 2 . Wheel 1 | . . . . . . . 1 . Hover . | . . . . . . . . . Flight 1 | . . . . . 1 . . . Utility 17 | 2 1 . . . 8 5 . 1 Device 6 | . . . . . 4 1 . 1 Storage 4 | 2 1 . . . 1 . . . Processor 1 | . . . . . . 1 . . Hackware 4 | . . . . . 2 2 . . Protection 2 | . . . . . 1 1 . . Artifact . | . . . . . . . . . Weapon 27 | 2 . . 1 . 10 13 1 . Energy Gun 7 | . . . . . 3 4 . . Energy Cannon 1 | . . . . . 1 . . . Ballistic Gun 9 | 2 . . . . 3 4 . . Ballistic Cannon . | . . . . . . . . . Launcher 5 | . . . . . 2 2 1 . Special Weapon . | . . . . . . . . . Impact Weapon . | . . . . . . . . . Slashing Weapon 1 | . . . . . 1 . . . Piercing Weapon 3 | . . . . . . 3 . . Special Melee Weapon 1 | . . . 1 . . . . . Unidentified Prototypes 1 | . . . . . . 1 . . Parts Lost 44 | . . . . . 19 19 6 . Power 5 | . . . . . 3 2 . . Propulsion 18 | . . . . . 8 6 4 . Utility 6 | . . . . . 3 2 1 . Weapon 15 | . . . . . 5 9 1 . Highest Loss Streak 9 | . . . . . 9 9 6 . To Critical Strikes 1 | . . . . . 1 . . . Average Backups 24 | 2 6 9 8 8 21 33 36 34 Power 2 | . 1 1 1 1 4 1 3 2 Propulsion 3 | 1 2 2 2 2 3 4 1 . Utility 9 | . 1 3 3 3 6 14 18 17 Weapon 7 | . 2 2 2 1 6 10 12 13 Tool/Special . | . . . . . . . . . Unused Backups 46 | . 1 . 2 . 9 9 . 25 Power 7 | . . . . . 5 1 . 1 Propulsion 3 | . . . . . 2 1 . . Utility 23 | . . . 1 . 2 4 . 16 Weapon 11 | . 1 . 1 . . 2 . 7 Tool/Special 2 | . . . . . . 1 . 1 Average Slot Usage (%) 72 | . 100 100 96 100 66 74 46 31 Engine 7 | . 14 14 14 14 8 3 3 5 Core 1 | . . . . . . 2 . . Treads 18 | . 28 28 28 28 18 17 6 . Leg 2 | . . . . . 4 2 . . Device 1 | . . . . . 3 . . 2 Storage 11 | . 28 28 28 28 9 7 7 7 Processor 2 | . . . . . . 4 7 7 Hackware 8 | . . . . . 1 19 11 7 Protection 1 | . . . . . 3 . 3 . Energy Gun 1 | . . . . . 3 1 . . Energy Cannon 1 | . . . . . 4 . . . Ballistic Gun 7 | . 28 28 14 27 8 3 2 . Piercing Weapon 2 | . . . . . . 7 . . Peak Build Rating 69 | 7 8 8 10 14 59 69 68 51 Average Rating 47 | 5 7 8 8 11 48 62 53 48 On Entrance 23 | . 7 8 8 10 14 52 67 47 Naked Turns . | . . . . . . . . . Heaviest Build 35 | 19 24 24 24 28 35 29 35 11 Greatest Support 60 | 40 40 40 40 40 60 60 60 3 Greatest Overweight (x) 4 | . . . . . 4 4 3 3 Average Overweight (x) . | . . . . . . . . 2 Largest Inventory Capacity 40 | 8 10 10 10 10 40 40 40 40 Average Capacity 35 | 7 8 10 10 10 40 40 40 40 Most Carried 40 | 4 9 9 10 10 33 40 39 36 Average Carried 24 | 2 7 9 9 10 22 33 36 34 Final Capacity 40 | 8 10 10 10 10 40 40 40 40 Final Carried 39 | 4 9 9 10 10 33 39 36 36 Class Distribution -------------------- 84% | Hauler-Mutant 15% | Mutant Dominant Class ---------------- Mutant | -10/Materials Mutant | -10/Mines Mutant | -10/Exiles Mutant | -9/Mines Hauler-Mutant | -8/Materials Hauler-Mutant | -7/Factory Hauler-Mutant | -7/Waste Hauler-Mutant | -7/Factory Resources | -11 -10 -10 -10 -9 -8 -7 -7 -7 ----------- Run | Yrd Mat Min Exi Min Mat Fac Was Fac Matter Collected 2076 | 271 35 . . 116 922 732 . . Remotely . | . . . . . . . . . Salvage Created 3041 | 74 63 . . 109 1478 1033 284 . Parts 169 | 3 9 . . 6 87 63 1 . Haulers Intercepted 8 | . 1 . . . 4 3 . . Recyclers Shooed 2 | . . . . 1 1 . . . Parts Field Recycled . | . . . . . . . . . Retrieved Matter . | . . . . . . . . . Parts Self-Destructed . | . . . . . . . . . Prevented . | . . . . . . . . . Kills | -11 -10 -10 -10 -9 -8 -7 -7 -7 ------- Run | Yrd Mat Min Exi Min Mat Fac Was Fac Combat Hostiles Destroyed 49 | . . . . 3 29 16 1 . Melee 7 | . . . . . . 7 . . Guns 20 | . . . . 3 9 8 . . Cannons 9 | . . . . . 9 . . . AOE 11 | . . . . . 9 1 1 . Classes Destroyed 13 | 1 2 . . 2 6 1 1 . Worker 2 | . . . . . 1 1 . . Builder 5 | . . . . . 1 4 . . Hauler 8 | . 1 . . . 4 3 . . Recycler 2 | 1 . . . . . 1 . . Operator 7 | . . . . . 3 4 . . Watcher 4 | . 1 . . . 2 1 . . Swarmer 6 | . . . . 1 5 . . . Grunt 25 | . . . . 2 15 8 . . Sentry 6 | . . . . . 5 1 . . Hunter 4 | . . . . . 3 1 . . Programmer 6 | . . . . . . 6 . . Heavy 1 | . . . . . 1 . . . Compactor 1 | . . . . . . . 1 . Best Kill Streak 5 | 1 1 . . 2 5 4 1 . Combat Bots Only 4 | . . . . 2 4 4 1 . Max Kills in Single Turn 3 | 1 1 . . 1 3 2 1 . Gunslinging . | . . . . . . . . . Exploded 3 | . . . . . 3 1 1 . Melee 1 | . . . . . . 1 . . Uniques/NPCs Destroyed . | . . . . . . . . . Combat | -11 -10 -10 -10 -9 -8 -7 -7 -7 -------- Run | Yrd Mat Min Exi Min Mat Fac Was Fac Hostile Shots Fired 479 | . 11 . . 24 195 235 6 8 Missed 128 | . 3 . . 5 61 57 . 2 Hits 351 | . 8 . . 19 134 178 6 6 Melee 6 | . . . . . . . 6 . Projectile 345 | . 8 . . 19 134 178 . 6 Critical Strikes 16 | . . . . 1 7 5 3 . Damage Taken 5432 | . 103 . . 190 2272 2495 272 100 Core 1052 | . 38 . . 70 240 563 44 97 Absorbed by Shields . | . . . . . . . . . Core Remaining (%) 70 | 100 . . . 56 56 . . . Volleys Fired 209 | 1 4 . . 11 129 58 6 . Largest 2 | 2 2 . . 2 2 2 2 . Hottest 116 | 40 40 . . 40 116 110 78 . Shots Fired 393 | 2 8 . . 22 242 107 12 . Gun 282 | 2 8 . . 22 147 101 2 . Cannon 80 | . . . . . 80 . . . Launcher 31 | . . . . . 15 6 10 . Special . | . . . . . . . . . Kinetic 192 | 2 8 . . 22 94 64 2 . Thermal 138 | . . . . . 127 11 . . Explosive 31 | . . . . . 15 6 10 . Electromagnetic 32 | . . . . . 6 26 . . Robot Hit Streak 17 | 2 3 . . 8 17 14 9 . Robot Miss Streak 6 | . 2 . . 2 4 5 6 . Penetration Max 1 | . . . . . . 1 . . Secondary Targets 2 | . . . . 1 . 1 . . Max Gunslinging Chain 1 | . . . . 1 . 1 . . Shots Hit Robots 290 | 2 4 . 4 15 152 103 10 . Core Hits 159 | 2 3 . . 5 67 79 3 . Critical Kills 1 | . . . . . 1 . . . Critical Parts Destroyed 3 | . . . . 2 1 . . . Critical Strikes 7 | . . . . 2 4 1 . . Burn 2 | . . . . . 2 . . . Meltdown 1 | . . . . . 1 . . . Destroy 3 | . . . . 2 1 . . . Impale 1 | . . . . . . 1 . . Melee Attacks 66 | . . . 4 . 11 51 . . Impact . | . . . . . . . . . Slashing 13 | . . . . . 11 2 . . Piercing 49 | . . . . . . 49 . . Sneak Attacks 15 | . . . 4 . 1 10 . . Combat Hostiles . | . . . . . . . . . Follow-up Attacks 4 | . . . . . . 4 . . Damage Inflicted 7811 | 27 50 . . 193 3665 2609 1261 6 Guns 2846 | 24 50 . . 193 1380 1176 23 . Cannons 1268 | . . . . . 1268 . . . Explosions 2524 | . . . . . 936 350 1238 . Melee 1159 | . . . . . 81 1078 . . Ramming 14 | 3 . . . . . 5 . 6 Kinetic 2037 | 24 50 . . 193 828 919 23 . Thermal 1848 | . . . . . 1741 107 . . Explosive 2491 | . . . . . 936 317 1238 . Electromagnetic 262 | . . . . . 79 183 . . Impact . | . . . . . . . . . Slashing 113 | . . . . . 81 32 . . Piercing 1046 | . . . . . . 1046 . . Highest Corruption 28 | . . . . . . 9 28 28 Average Corruption 8 | . . . . . . 5 19 28 Corruption Purged 4 | . . . . . . 4 . . Corruption Blocked . | . . . . . . . . . Effects 93 | . . . . . . 61 10 22 Message Errors 35 | . . . . . . 24 1 10 Matter Fused 18 | . . . . . . 13 2 3 Heat Flow Errors 12 | . . . . . . 10 . 2 Energy Discharges 6 | . . . . . . 2 . 4 Parts Rejected 2 | . . . . . . . 1 1 Parts Fused 1 | . . . . . . 1 . . Data Loss (minor) 8 | . . . . . . 6 2 . Data Loss (major) 1 | . . . . . . 1 . . Misfires 3 | . . . . . . 3 . . Alerts 2 | . . . . . . 1 1 . Misdirections 5 | . . . . . . . 3 2 Overload Shots . | . . . . . . . . . Overflow Damage 187 | . . . . . 71 112 4 . Projectiles 20 | . . . . . 20 . . . Explosions 4 | . . . . . . . 4 . Melee 163 | . . . . . 51 112 . . Knockbacks . | . . . . . . . . . Impact . | . . . . . . . . . Kinetic . | . . . . . . . . . Secondary . | . . . . . . . . . Self-Inflicted Damage 118 | . . . . . . 86 29 3 Shots 3 | . . . . . . 2 1 . Rammed 3 | 1 . . . . . 1 . 1 Targets Rammed 4 | 1 . . . . . 2 . 1 Kicked 1 | . . . . . . 1 . . Crushed . | . . . . . . . . . Highest Temperature 297 | . . . . 20 297 261 27 179 Average Temperature 76 | . . . . 9 65 112 10 96 Received Heat Transfer 1293 | . 60 . . 63 603 567 . . Effects 4 | . . . . . 3 1 . . Energy Bleed 3 | . . . . . 3 . . . Interference 1 | . . . . . . 1 . . Siege Activations . | . . . . . . . . . Martial Activations . | . . . . . . . . . Shielding Activations . | . . . . . . . . . Robots Disrupted . | . . . . . . . . . Combat Hostiles . | . . . . . . . . . Robots Corrupted . | . . . . . . . . . Combat Hostiles . | . . . . . . . . . Parts Fried . | . . . . . . . . . Impact Corruptions . | . . . . . . . . . Robots Melted 2 | . . . . . 2 . . . Combat Hostiles 2 | . . . . . 2 . . . Parts Melted 3 | . . . . . 3 . . . Heat Transferred 3602 | . . . . . 3404 198 . . Parts Sabotaged . | . . . . . . . . . Parts Stolen . | . . . . . . . . . Parts Stripped . | . . . . . . . . . Power Chain Reactions 1 | . . . . . . 1 . . Alert | -11 -10 -10 -10 -9 -8 -7 -7 -7 ------- Run | Yrd Mat Min Exi Min Mat Fac Was Fac Maximum Alert Level 2 | . . . . . 2 1 . . Low Security (%) 86 | 100 100 100 . 100 71 98 100 100 Level 1 8 | . . . . . 16 1 . . Level 2 4 | . . . . . 11 . . . Level 3 . | . . . . . . . . . Level 4 . | . . . . . . . . . Level 5 . | . . . . . . . . . High Security . | . . . . . . . . . Max Security . | . . . . . . . . . Peak Influence 513 | 5 7 . . 74 513 228 71 . Initial 228 | . . . . . . 228 45 . Average 86 | . . . . 36 151 44 19 . Influence Increases 1904 | 5 14 . . 130 1059 652 44 . Destroy 0b10 Robot/C 1000 | . . . . 100 580 320 . . Destroy 0b10 Robot/NC 140 | 5 10 . . . 55 70 . . Destroy Leader 304 | . 4 . . 20 172 108 . . Allied During Kill 4 | . . . . 4 . . . . Successful Hack 33 | . . . . 6 . 27 . . Disable Machine 60 | . . . . . 30 30 . . Destroy Structure 198 | . . . . . 117 37 44 . Lose Combat Pursuer 165 | . . . . . 105 60 . . Influence Decreases 1904 | 5 14 . . 130 556 1024 175 . Entered New Map 361 | . . . . . . 275 86 . Time Decay 1114 | 5 14 . . 110 366 589 30 . Lost Part 409 | . . . . . 190 160 59 . Lost Ally 20 | . . . . 20 . . . . Squads Dispatched 22 | . . 1 . . 6 14 . 1 Investigation 4 | . . . . . 2 2 . . Extermination 7 | . . . . . . 6 . 1 Reinforcement 9 | . . . . . 4 5 . . Assault 1 | . . 1 . . . . . . Garrison 1 | . . . . . . 1 . . Intercept . | . . . . . . . . . Searches Triggered . | . . . . . . . . . Construction Impeded . | . . . . . . . . . Haulers Reinforced 1 | . . . . . . 1 . . Active Scanning Responses . | . . . . . . . . . Cargo Convoy Interrupts . | . . . . . . . . . Stealth | -11 -10 -10 -10 -9 -8 -7 -7 -7 --------- Run | Yrd Mat Min Exi Min Mat Fac Was Fac Distress Signals 5 | . . . . . 3 2 . . Communications Jammed . | . . . . . . . . . Distress Signals . | . . . . . . . . . Times Spotted 99 | . 7 . . 6 53 25 6 2 Peak Tracking Total 5 | . 4 . . 4 5 3 5 1 Tactical Retreats 10 | . . . . . 7 3 . . Traps | -11 -10 -10 -10 -9 -8 -7 -7 -7 ------- Run | Yrd Mat Min Exi Min Mat Fac Was Fac Traps Triggered 5 | . . . . . 2 3 . . Indirectly . | . . . . . . . . . Trap Hack Attempts . | . . . . . . . . . Triggered . | . . . . . . . . . Disarmed . | . . . . . . . . . Reprogrammed . | . . . . . . . . . Reused . | . . . . . . . . . Traps Extracted . | . . . . . . . . . Installed . | . . . . . . . . . Triggered . | . . . . . . . . . Machines | -11 -10 -10 -10 -9 -8 -7 -7 -7 ---------- Run | Yrd Mat Min Exi Min Mat Fac Was Fac Machines Disabled 4 | . . . . . 2 2 . . Max in Single Turn 1 | . . . . . 1 1 . . Machines Repaired . | . . . . . . . . . Machines Dismantled . | . . . . . . . . . Machines Sabotaged . | . . . . . . . . . Overloaded Fab Kills . | . . . . . . . . . Hacking | -11 -10 -10 -10 -9 -8 -7 -7 -7 --------- Run | Yrd Mat Min Exi Min Mat Fac Was Fac Machines Accessed 15 | . 1 . 2 1 5 6 . . Terminals 7 | . . . . 1 3 3 . . Fabricators 1 | . . . . . . 1 . . Repair Stations 1 | . . . . . 1 . . . Recycling Units 3 | . 1 . . . 1 1 . . Scanalyzers 1 | . . . . . . 1 . . Garrison Access . | . . . . . . . . . Total Hacks 50 | . 1 . 24 1 11 13 . . Successful 37 | . 1 . 24 1 4 7 . . Failed 13 | . . . . . 7 6 . . Catastrophic 2 | . . . . . 1 1 . . Database Lockouts . | . . . . . . . . . Manual 19 | . . . 1 1 8 9 . . Terminals 14 | . . . . 1 8 5 . . Fabricators 1 | . . . . . . 1 . . Repair Stations 1 | . . . . . 1 . . . Recycling Units 5 | . 1 . . . 2 2 . . Scanalyzers 5 | . . . . . . 5 . . Garrison Access . | . . . . . . . . . Terminal Hacks 26 | . . . 24 . 1 1 . . Record 23 | . . . 23 . . . . . Level Access Points 2 | . . . . . 1 1 . . Proto ID Catalog 1 | . . . 1 . . . . . Fabricator Hacks 1 | . . . . . . 1 . . Network Status 1 | . . . . . . 1 . . Repair Station Hacks . | . . . . . . . . . Recycling Unit Hacks 4 | . 1 . . . 2 1 . . Report Inventory 3 | . 1 . . . 1 1 . . Retrieve Components 1 | . . . . . 1 . . . Scanalyzer 3 | . . . . . . 3 . . Insert Component 2 | . . . . . . 2 . . Analyze 1 | . . . . . . 1 . . Garrison Access Hacks . | . . . . . . . . . Unauthorized Hacks 3 | . . . . 1 1 1 . . Terminals 3 | . . . . 1 1 1 . . Operators 3 | . . . . 1 1 1 . . Fabricators . | . . . . . . . . . Repair Stations . | . . . . . . . . . Recycling Units . | . . . . . . . . . Scanalyzers . | . . . . . . . . . Garrison Access . | . . . . . . . . . Data Cores Recovered . | . . . . . . . . . Used . | . . . . . . . . . Hacking Detections 4 | . . . . . . 4 . . Full Trace Events 2 | . . . . . . 2 . . Feedback Events . | . . . . . . . . . Feedback Blocked . | . . . . . . . . . Robot Schematics Acquired . | . . . . . . . . . Robots Built . | . . . . . . . . . Authchips . | . . . . . . . . . Time . | . . . . . . . . . Total Robot Build Rating . | . . . . . . . . . Part Schematics Acquired 1 | . . . . . . 1 . . Parts Built . | . . . . . . . . . Authchips . | . . . . . . . . . Time . | . . . . . . . . . Total Part Build Rating . | . . . . . . . . . Parts Repaired . | . . . . . . . . . Time . | . . . . . . . . . Parts Recycled . | . . . . . . . . . Recycled Matter . | . . . . . . . . . Retrieved Matter . | . . . . . . . . . Retrieved Components 10 | . . . . . 10 . . . Parts Scanalyzed 2 | . . . . . . 2 . . Part Schematics Acquired 1 | . . . . . . 1 . . Parts Damaged . | . . . . . . . . . Bothacking | -11 -10 -10 -10 -9 -8 -7 -7 -7 ------------ Run | Yrd Mat Min Exi Min Mat Fac Was Fac Used RIF Installer . | . . . . . . . . . Robots Hacked 2 | . . . 2 . . . . . Non-combat 1 | . . . 1 . . . . . Combat 1 | . . . 1 . . . . . Robot Hacks Applied 3 | . . . 3 . . . . . parse_system 3 | . . . 3 . . . . . Relay Couplers Released . | . . . . . . . . . Fabnet Peak Effective % . | . . . . . . . . . Robots Rewired . | . . . . . . . . . Allies Hacked . | . . . . . . . . . Hacks Repelled . | . . . . . . . . . Allies | -11 -10 -10 -10 -9 -8 -7 -7 -7 -------- Run | Yrd Mat Min Exi Min Mat Fac Was Fac Total Allies 1 | . . 1 . . . . . . Largest Group 1 | . . 1 1 1 . . . . Highest-Rated Group 31 | . . 31 31 31 . . . . Highest-Rated Ally 31 | . . 31 31 31 . . . . Total Orders . | . . . . . . . . . Ally Attacks 8 | . . . . 8 . . . . Total Damage 149 | . . . . 149 . . . . Kills 2 | . . . . 2 . . . . Allies Corrupted . | . . . . . . . . . Allies Melted . | . . . . . . . . . Intel | -11 -10 -10 -10 -9 -8 -7 -7 -7 ------- Run | Yrd Mat Min Exi Min Mat Fac Was Fac Active Infowar (turns) . | . . . . . . . . . Robot Analysis Total . | . . . . . . . . . Derelict Logs Recovered 1 | . . . . 1 . . . . Drone Launches . | . . . . . . . . . Drone Recoveries . | . . . . . . . . . Exploration | -11 -10 -10 -10 -9 -8 -7 -7 -7 ------------- Run | Yrd Mat Min Exi Min Mat Fac Was Fac Turns Passed 9704 | 111 304 101 826 224 3961 3506 152 519 Spaces Moved 4656 | 60 177 64 509 101 1715 1633 107 290 Core 417 | 3 . . . . 12 22 90 290 Treads 3474 | 57 177 64 509 101 1303 1246 17 . Legs 765 | . . . . . 400 365 . . Wheels . | . . . . . . . . . Hover . | . . . . . . . . . Flight . | . . . . . . . . . Fastest Speed 50 | 50 160 160 160 160 120 120 100 100 Average Speed 154 | 154 160 160 160 160 151 153 116 173 Slowest Speed 250 | 160 160 160 160 160 250 250 240 200 Overloaded Moves . | . . . . . . . . . Propulsion Burnouts . | . . . . . . . . . Robots Hopped . | . . . . . . . . . Potential Cave-ins . | . . . . . . . . . Cave-ins Triggered . | . . . . . . . . . Exploration Rate (%) 40 | 4 42 23 80 18 84 26 81 6 Regions Visited 8 Branch Regions 3 Pre-discovered Areas 1 | . . . 1 . . . . . Known Exits Taken 2 | . . . . 1 1 . . . Unknown Exits Taken 4 | 1 1 1 1 . . . . . Scrap Searched . | . . . . . . . . . Spaces Dug 17 | . . . . . 10 7 . . Terrain Destroyed 263 | . . . . . 148 40 75 . Melee 17 | . . . . . 10 7 . . Projectile 21 | . . . . . 21 . . . AOE 225 | . . . . . 117 33 75 . Terrain Rammed . | . . . . . . . . . Walls Destroyed . | . . . . . . . . . Machines Disabled . | . . . . . . . . . Actions | -11 -10 -10 -10 -9 -8 -7 -7 -7 --------- Run | Yrd Mat Min Exi Min Mat Fac Was Fac Total 6659 | 72 191 63 520 141 2802 2448 119 303 Wait 1499 | . 2 . . 26 841 623 . 7 Move 4650 | 60 176 63 508 100 1714 1633 106 290 Hop . | . . . . . . . . . Pick Up 105 | 4 6 . 2 . 50 41 1 1 Fast Attach 17 | 7 . . . . 4 6 . . Attach 47 | . . . 1 . 20 20 4 2 Detach 4 | . . . 1 . 2 . . 1 Swap 48 | . 1 . 1 3 26 15 2 . Drop 15 | . 2 . 3 1 5 4 . . Fire 209 | 1 4 . . 11 129 58 6 . Melee 61 | . . . 4 . 11 46 . . Ram 2 | . . . . . . . . 2 Kick 1 | . . . . . . 1 . . Crush 1 | . . . . . . 1 . . Escape Stasis . | . . . . . . . . . Rewire . | . . . . . . . . . Trap . | . . . . . . . . . Miscellaneous . | . . . . . . . . . Route ------- -11/Scrapyard -10/Materials -10/Mines -10/Exiles (discovered 2 exits: *Min x2) -9/Mines (discovered 2 exits: *Mat x2) -8/Materials (discovered 4 exits: *Fac x3 / [*Sto]) -7/Factory (discovered 4 exits: Fac x4) -7/Waste -7/Factory History --------- Turn | Location | Event 8 | -11/Scrapyard | Discovered new exit (range 14) 112 | -11/Scrapyard | Entered Materials 305 | -10/Materials | Discovered new exit (range 7) 318 | -10/Materials | Build established: Mutant 416 | -10/Materials | Entered Mines 444 | -10/Mines | Found a hidden stash of uninstalled traps 483 | -10/Mines | Met a Derelict testing a Signal Generator 511 | -10/Mines | Deemed a non-threat by the Exiles lab entrance 511 | -10/Mines | Discovered new exit (range 5) 517 | -10/Mines | Entered Exiles 517 | -10/Exiles | Accompanied by 1 ally 541 | -10/Exiles | Discovered new exit (range 15) 578 | -10/Exiles | Met 8R-AWN 602 | -10/Exiles | Met EX-HEX 652 | -10/Exiles | Met EX-BIN 842 | -10/Exiles | Aligned with FarCom system 844 | -10/Exiles | Given EX-Vault access code 882 | -10/Exiles | Opened EX-Vault 900 | -10/Exiles | Found Lightpack 2.0 933 | -10/Exiles | Warned to stay clear of 0b10 Research branches 978 | -10/Exiles | Met EX-DEC 989 | -10/Exiles | Learned location of Zion (-6) 1056 | -10/Exiles | Discovered new exit (range 14) 1193 | -10/Exiles | Visited The Gauntlet 1343 | -10/Exiles | Left Exiles lab with Lightpack 2.0 1343 | -10/Exiles | Entered Mines 1343 | -9/Mines | Accompanied by 1 ally 1530 | -9/Mines | Discovered new exit (range 5) 1545 | -9/Mines | Identified exit to Materials 1567 | -9/Mines | Entered Materials 1567 | -8/Materials | Evolved 4 slots: Propulsion x1, Utility x3 1856 | -8/Materials | Build established: Hauler-Mutant 2459 | -8/Materials | Discovered new exit (range 13) 3414 | -8/Materials | Discovered new exit (range 11) 4607 | -8/Materials | Lost 4 parts (1p1n2u) 4800 | -8/Materials | Lost 9 parts (2p4n1u2w) 4943 | -8/Materials | Discovered new exit (range 9) 4976 | -8/Materials | Discovered new exit (range 13) 5471 | -8/Materials | Identified exit to Factory 5528 | -8/Materials | Entered Factory 5528 | -7/Factory | Evolved 2 slots: Utility x2 5953 | -7/Factory | Lost 5 parts (1p1n3w) 6151 | -7/Factory | Lost 9 parts (1p2n1u5w) 6246 | -7/Factory | Garrison activated, responded to threat 6944 | -7/Factory | Core integrity fell below 50% 7895 | -7/Factory | Identified exit to Factory 8262 | -7/Factory | Lost 3 parts (2n1u) 8901 | -7/Factory | Core integrity fell below 20% 9034 | -7/Factory | Sucked down chute 9034 | -7/Factory | Entered Waste 9045 | -7/Waste | Spotted C-40 Crusher 9046 | -7/Waste | Spotted C-40 Crusher 9049 | -7/Waste | EMP discharged 9049 | -7/Waste | System corruption reached 10% 9052 | -7/Waste | Destroyed C-40 Crusher 9081 | -7/Waste | Spotted C-40 Crusher 9081 | -7/Waste | Crushed by Compactor (1 part destroyed, 1 dropped) 9084 | -7/Waste | Crushed by Compactor (1 part destroyed, 1 dropped) 9087 | -7/Waste | Crushed by Compactor (1 part destroyed) 9089 | -7/Waste | Spotted C-40 Crusher 9090 | -7/Waste | Crushed by Compactor (1 part destroyed, 2 dropped) 9100 | -7/Waste | Crushed by Compactor (1 part destroyed, 1 dropped) 9103 | -7/Waste | Spotted C-40 Crusher 9131 | -7/Waste | Lost 6 parts (4n1u1w) 9135 | -7/Waste | Spotted C-40 Crusher 9149 | -7/Waste | EMP discharged 9165 | -7/Waste | Discovered new exit (range 14) 9185 | -7/Waste | Identified exit to Factory 9186 | -7/Waste | Entered Factory 9705 | -7/Factory | Destroyed by H-55 Commando with Assault Rifle Last Messages --------------- 09337_ Micro-nuke Launcher functionality restored. 09454_ ET==SIOTSR3>4,WKKWPFZ:V 09514_ VUC QKOPQJPWLOR BWO# 09536_ SSM/%ZWA1AQXV/T U&IQNOU0GQCTS 09552_ ALERT: All DSF locations entering lockdown mode. 09553_ NMOG#CZBXHCX/M:X UU#LWPM&FO9C#9MD:N2A 09574_ System corrupted: Energy discharge (-97). 09580_ ALERT: Potential suspicious activity detected, Programmers report to Factory Zone 6C. 09597_ Slammed into T-07 Excavator. 09607_ System corrupted: Energy discharge (-70). 09624_ System corrupted: Matter fused (-5). 09639_ System corrupted: Heat flow error (+201). 09658_ |:/GYG,EHSB#D 8YDGDACZRF 09675_ LJGT|GQ#V86%/ JU3V,6TZA&FRRBHLRVZNK 09696_ Penetrated by Slug. 09699_ Slug penetrates Wall. 09701_ System corrupted: Ion Engine rejected. 09701_ Acquired Ion Engine. 09702_ Penetrated by Slug. Map ----- +----------------------------------------------------+ | ?????????????????# # """"""" #???#! """ # | | ?????????????????# # """"""" #???# """ # | | ?????????????????# # #???#! """ ? | | ?????????????????# ###############???? ??? | | ?????????????????# ##############????###+###?? | | ?????????????????# # [ #????# #?? | | ?????????????????# # ###### #?? | | ?????????????????# # + " #?? | | ?????????????????# # ###### #?? | | ?????????????????# # #????# #?? | | ?????????????????# # #????### ###?? | | ???????????????? + + #??????# #???? | | ??????????????" # # #??????# #???? | | ???????????? ?# # #??????# #???? | | ??????????? ??# p # ! #??????# #???? | | ??????????####???# # #??????# #???? | | ?????????????????# # #??????# #???? | | ???????????????? ##############??????# #???? | | ??????????????? # !!]#????????????# #???? | | ?????????????? # !!]#????????????# #???? | | ????????????? # !]]#????????????# #???? | | ???????????? # #????????????# #???? | | ????????????##+######### #????????????# #???? | | ???????????????????????? ??????????????# #???? | | ??????????????????????####+################# #???? | | ?????????????????"" + @ #???? | | ??????????????????????####h###################???? | | ?????????????????????????#r#?????????????????????? | | ?????????????????????????# #?????????????????????? | | ?????????????????????????# #?????????????????????? | | ?????????????????????????# #?????????????????????? | | ?????????????????????????# ?????????????????????? | | ?????????????????????????# ?????????????????????? | | ?????????????????????????? ?????????????????????? | | ?????????????????????????? ?????????????????????? | | ?????????????????????????? ?????????????????????? | | ?????????????????????????? ?????????????????????? | | ?????????????????????????? ?????????????????????? | | ?????????????????????????? ?????????????????????? | | ?????????????????????????? ?????????????????????? | | ?????????????????????????????????????????????????? | | ?????????????????????????????????????????????????? | | ?????????????????????????????????????????????????? | | ?????????????????????????????????????????????????? | | ?????????????????????????????????????????????????? | | ?????????????????????????????????????????????????? | | ?????????????????????????????????????????????????? | | ?????????????????????????????????????????????????? | | ?????????????????????????????????????????????????? | | ?????????????????????????????????????????????????? | +----------------------------------------------------+ Best States ------------- Heat Dissipation 34 Coolant Potential 65 Energy Generation 18 Energy Capacity 280 Matter Stores 300 Matter Capacity 300 Sight Range 16 Terrain Scan Density 10 Armor Coverage 225 Evasion (%) 55 Recoil Reduction 3 Kinecelleration 30 Offensive Hacking 20 Defensive Hacking 20 Item Schematics ----------------- Hacking Suite | -7/Factory | Scanalyzed Robot Schematics ------------------ None Fabricated ------------ Nothing Repaired ---------- Nothing Alien Tech Used ----------------- None Achievements -------------- Librarian Maybe Next Time I'll Detach My Launcher More Dakka Please Novice Programmer Packrat True Hacker Challenges ------------ None Game ------ Seed OpticalBiocellCycler Manual? 0 Play Time 01:55:08 Cumulative 17.8 hours Start 2025.10.17 @ 22:40:43 End 2025.10.18 @ 11:11:31 Sessions 3 Manual Loads 0 Difficulty Rogue Special Mode None Game No. 13 Rogue 13 Adventurer 0 Explorer 0 Win Type - Total 0 Types 0/0/0/0/0/0/0/0/0/0 Lore% 7 Gallery% 20 Achievement% 17 Wizard Run 0 Options --------- Layout 0 ASCII 0 Keyboard 0 Movement Mouse Keybinds 1 Fullscreen 2 Font 24/Smallcaps Map View 76x50 Zoom Use 0% Tactical HUD 1 Map Filters NONE Filters NONE Steam 1 RUN: 81cfc493-5387-42a8-9c09-8609e758375f